[Event "Titled Tuesday Blitz June 28 Late 2022"]
[White "Abdi, Farzad"]
[Black "Mangialardo, Tiago Carvalho"]
[WhiteFideId "2076829"]
[BlackFideId "2130718"]
[WhiteElo "2328"]
[BlackElo "2072"]
[Result "1-0"]
[Round "03"]
[TimeControl "180+1"]
[Date "2022.06.29"]
[WhiteClock "0:02:02"]
[BlackClock "0:00:39"]

1. e4 {[%clk 0:03:00]}  e5 {[%clk 0:02:57]} 2. Nf3 {[%clk 0:03:00]}  Nc6 {[%clk 0:02:56]} 3. Bb5 {[%clk 0:02:58]}  a6 {[%clk 0:02:56]} 4. Bxc6 {[%clk 0:02:58]}  dxc6 {[%clk 0:02:55]} 5. Nc3 {[%clk 0:02:59]}  Bd6 {[%clk 0:02:54]} 6. d4 {[%clk 0:02:58]}  exd4 {[%clk 0:02:53]} 7. Qxd4 {[%clk 0:02:59]}  Bf8 {[%clk 0:02:02]} 8. Qxd8+ {[%clk 0:02:55]}  Kxd8 {[%clk 0:02:03]} 9. Bf4 {[%clk 0:02:53]}  Be6 {[%clk 0:01:57]} 10. O-O-O+ {[%clk 0:02:54]}  Kc8 {[%clk 0:01:56]} 11. Nd4 {[%clk 0:02:51]}  Bd7 {[%clk 0:01:44]} 12. f3 {[%clk 0:02:47]}  Bc5 {[%clk 0:01:40]} 13. Nb3 {[%clk 0:02:42]}  Bb6 {[%clk 0:01:31]} 14. Rd3 {[%clk 0:02:38]}  Ne7 {[%clk 0:01:23]} 15. Rhd1 {[%clk 0:02:35]}  Be6 {[%clk 0:01:24]} 16. Na4 {[%clk 0:02:31]}  Ba7 {[%clk 0:01:19]} 17. Nac5 {[%clk 0:02:25]}  Bxc5 {[%clk 0:01:05]} 18. Nxc5 {[%clk 0:02:23]}  b6 {[%clk 0:00:39]} 19. Nxe6 {[%clk 0:02:18]}  fxe6 {[%clk 0:00:40]} 20. Rd7 {[%clk 0:02:18]}  Ng6 {[%clk 0:00:39]} 21. Rxc7+ {[%clk 0:02:04]}  Kb8 {[%clk 0:00:39]} 22. Bg3 {[%clk 0:02:04]}  e5 {[%clk 0:00:39]} 23. Rdd7 {[%clk 0:02:02]} 1-0


[Site "https://www.chess.com"]

[Event "Titled Tuesday Blitz June 28 Late 2022"]
[White "Aggelis, Nikolaos"]
[Black "Steinberg, Nitzan"]
[WhiteFideId "4213220"]
[BlackFideId "2801795"]
[WhiteElo "2154"]
[BlackElo "2471"]
[Result "1/2-1/2"]
[Round "03"]
[TimeControl "180+1"]
[Date "2022.06.28"]
[WhiteClock "0:00:02"]
[BlackClock "0:00:07"]

1. d4 {[%clk 0:03:00]}  g6 {[%clk 0:02:58]} 2. g3 {[%clk 0:02:56]}  Bg7 {[%clk 0:02:59]} 3. Nf3 {[%clk 0:02:56]}  d5 {[%clk 0:02:59]} 4. Bg2 {[%clk 0:02:56]}  Nd7 {[%clk 0:02:59]} 5. O-O {[%clk 0:02:56]}  Ngf6 {[%clk 0:02:59]} 6. Nbd2 {[%clk 0:02:52]}  Nb6 {[%clk 0:02:56]} 7. b3 {[%clk 0:02:52]}  a5 {[%clk 0:02:55]} 8. c4 {[%clk 0:02:51]}  c6 {[%clk 0:02:52]} 9. Bb2 {[%clk 0:02:39]}  O-O {[%clk 0:02:52]} 10. a3 {[%clk 0:02:30]}  Bf5 {[%clk 0:02:45]} 11. Ne5 {[%clk 0:02:28]}  Nfd7 {[%clk 0:02:42]} 12. Nd3 {[%clk 0:02:25]}  dxc4 {[%clk 0:02:15]} 13. Nxc4 {[%clk 0:02:03]}  a4 {[%clk 0:02:14]} 14. Rc1 {[%clk 0:01:12]}  axb3 {[%clk 0:02:07]} 15. Ne3 {[%clk 0:01:01]}  Bxd3 {[%clk 0:01:42]} 16. Qxd3 {[%clk 0:01:01]}  Na4 {[%clk 0:01:40]} 17. Qxb3 {[%clk 0:00:59]}  Nxb2 {[%clk 0:01:37]} 18. Qxb2 {[%clk 0:01:00]}  Qb6 {[%clk 0:01:36]} 19. Qxb6 {[%clk 0:00:51]}  Nxb6 {[%clk 0:01:36]} 20. d5 {[%clk 0:00:51]}  Rxa3 {[%clk 0:01:17]} 21. dxc6 {[%clk 0:00:49]}  bxc6 {[%clk 0:01:18]} 22. Rxc6 {[%clk 0:00:49]}  Na4 {[%clk 0:01:13]} 23. Ra6 {[%clk 0:00:45]}  Rc8 {[%clk 0:00:34]} 24. Bc6 {[%clk 0:00:38]}  Rxe3 {[%clk 0:00:34]} 25. fxe3 {[%clk 0:00:35]}  Nc5 {[%clk 0:00:34]} 26. Ra8 {[%clk 0:00:34]}  Rxa8 {[%clk 0:00:35]} 27. Bxa8 {[%clk 0:00:35]}  e6 {[%clk 0:00:33]} 28. Kf2 {[%clk 0:00:35]}  Be5 {[%clk 0:00:29]} 29. Rc1 {[%clk 0:00:35]}  Bd6 {[%clk 0:00:29]} 30. Bf3 {[%clk 0:00:34]}  Kg7 {[%clk 0:00:29]} 31. h4 {[%clk 0:00:34]}  h5 {[%clk 0:00:29]} 32. Rc4 {[%clk 0:00:33]}  Kf6 {[%clk 0:00:29]} 33. Rc2 {[%clk 0:00:30]}  Ke7 {[%clk 0:00:28]} 34. Ra2 {[%clk 0:00:30]}  Kf6 {[%clk 0:00:28]} 35. Bc6 {[%clk 0:00:29]}  Be7 {[%clk 0:00:20]} 36. Ra7 {[%clk 0:00:29]}  Nb3 {[%clk 0:00:19]} 37. Rb7 {[%clk 0:00:23]}  Nd2 {[%clk 0:00:17]} 38. Bf3 {[%clk 0:00:12]}  Nc4 {[%clk 0:00:16]} 39. Rc7 {[%clk 0:00:12]}  Nd6 {[%clk 0:00:15]} 40. Ra7 {[%clk 0:00:11]}  Nf5 {[%clk 0:00:15]} 41. Ra5 {[%clk 0:00:05]}  Bd6 {[%clk 0:00:13]} 42. g4 {[%clk 0:00:05]}  hxg4 {[%clk 0:00:12]} 43. Bxg4 {[%clk 0:00:06]}  Nxh4 {[%clk 0:00:12]} 44. e4 {[%clk 0:00:05]}  Be5 {[%clk 0:00:08]} 45. Rb5 {[%clk 0:00:05]}  g5 {[%clk 0:00:08]} 46. e3 {[%clk 0:00:04]}  Ng6 {[%clk 0:00:08]} 47. Rb7 {[%clk 0:00:03]}  Ne7 {[%clk 0:00:08]} 48. Bh5 {[%clk 0:00:03]}  Bd6 {[%clk 0:00:08]} 49. Kf3 {[%clk 0:00:02]}  Be5 {[%clk 0:00:08]} 50. Kf2 {[%clk 0:00:02]}  Bd6 {[%clk 0:00:08]} 51. Kf3 {[%clk 0:00:02]}  Be5 {[%clk 0:00:07]} 52. Kf2 {[%clk 0:00:02]} 1/2-1/2


[Site "https://www.chess.com"]

[Event "Titled Tuesday Blitz June 28 Late 2022"]
[White "Al-Tarboush, Ward"]
[Black "Salem, A.R. Saleh"]
[WhiteFideId "7601450"]
[BlackFideId "9301348"]
[WhiteElo "2249"]
[BlackElo "2679"]
[Result "0-1"]
[Round "03"]
[TimeControl "180+1"]
[Date "2022.06.28"]
[WhiteClock "0:00:01"]
[BlackClock "0:00:13"]

1. e4 {[%clk 0:02:59]}  c5 {[%clk 0:02:55]} 2. Nf3 {[%clk 0:02:58]}  d6 {[%clk 0:02:56]} 3. d4 {[%clk 0:02:58]}  cxd4 {[%clk 0:02:57]} 4. Nxd4 {[%clk 0:02:58]}  Nf6 {[%clk 0:02:58]} 5. Nc3 {[%clk 0:02:57]}  a6 {[%clk 0:02:58]} 6. h3 {[%clk 0:02:57]}  e6 {[%clk 0:02:58]} 7. g4 {[%clk 0:02:56]}  Be7 {[%clk 0:02:59]} 8. g5 {[%clk 0:02:55]}  Nfd7 {[%clk 0:02:59]} 9. h4 {[%clk 0:02:55]}  b5 {[%clk 0:03:00]} 10. Be3 {[%clk 0:02:53]}  b4 {[%clk 0:02:59]} 11. Nce2 {[%clk 0:02:50]}  Bb7 {[%clk 0:03:00]} 12. Bg2 {[%clk 0:02:44]}  Nc6 {[%clk 0:03:00]} 13. Nxc6 {[%clk 0:02:43]}  Bxc6 {[%clk 0:03:01]} 14. Qd4 {[%clk 0:02:43]}  O-O {[%clk 0:03:00]} 15. Qxb4 {[%clk 0:02:40]}  Rb8 {[%clk 0:03:01]} 16. Qd4 {[%clk 0:02:36]}  Qc7 {[%clk 0:02:46]} 17. O-O {[%clk 0:02:27]}  Ne5 {[%clk 0:02:38]} 18. Ng3 {[%clk 0:02:15]}  Bb5 {[%clk 0:02:13]} 19. Rfc1 {[%clk 0:02:12]}  Nc4 {[%clk 0:02:13]} 20. b3 {[%clk 0:02:04]}  Nxe3 {[%clk 0:02:08]} 21. Qxe3 {[%clk 0:02:05]}  d5 {[%clk 0:02:02]} 22. exd5 {[%clk 0:01:34]}  Bc5 {[%clk 0:02:02]} 23. Qf3 {[%clk 0:01:27]}  exd5 {[%clk 0:02:02]} 24. Nh5 {[%clk 0:01:22]}  Rfe8 {[%clk 0:02:01]} 25. Re1 {[%clk 0:01:14]}  Bf8 {[%clk 0:01:51]} 26. Qxd5 {[%clk 0:00:51]}  Qxc2 {[%clk 0:01:45]} 27. Be4 {[%clk 0:00:48]}  Qc8 {[%clk 0:00:58]} 28. Bf5 {[%clk 0:00:35]}  Qc6 {[%clk 0:00:37]} 29. Bxh7+ {[%clk 0:00:29]}  Kxh7 {[%clk 0:00:30]} 30. Qxf7 {[%clk 0:00:30]}  Kh8 {[%clk 0:00:21]} 31. Rac1 {[%clk 0:00:16]}  Rxe1+ {[%clk 0:00:18]} 32. Rxe1 {[%clk 0:00:17]}  Re8 {[%clk 0:00:15]} 33. Kh2 {[%clk 0:00:01]}  Qd6+ {[%clk 0:00:13]} 0-1


[Site "https://www.chess.com"]

[Event "Titled Tuesday Blitz June 28 Late 2022"]
[White "Barria Zuniga, Daniel"]
[Black "Rasulov, Vugar"]
[WhiteFideId "3400816"]
[BlackFideId "13402390"]
[WhiteElo "2414"]
[BlackElo "2560"]
[Result "0-1"]
[Round "03"]
[TimeControl "180+1"]
[Date "2022.06.28"]
[WhiteClock "0:01:34"]
[BlackClock "0:02:07"]

1. d4 {[%clk 0:03:00]}  Nf6 {[%clk 0:02:59]} 2. c4 {[%clk 0:02:59]}  c6 {[%clk 0:02:59]} 3. Nf3 {[%clk 0:02:58]}  d5 {[%clk 0:03:00]} 4. Nc3 {[%clk 0:02:57]}  e6 {[%clk 0:02:59]} 5. Bg5 {[%clk 0:02:57]}  Nbd7 {[%clk 0:02:59]} 6. e3 {[%clk 0:02:56]}  Qa5 {[%clk 0:02:59]} 7. Nd2 {[%clk 0:02:56]}  Bb4 {[%clk 0:02:57]} 8. Qc2 {[%clk 0:02:54]}  O-O {[%clk 0:02:55]} 9. Rc1 {[%clk 0:02:52]}  h6 {[%clk 0:02:52]} 10. Bh4 {[%clk 0:02:49]}  Re8 {[%clk 0:02:52]} 11. a3 {[%clk 0:02:48]}  Bf8 {[%clk 0:02:49]} 12. b4 {[%clk 0:02:37]}  Qxa3 {[%clk 0:02:42]} 13. c5 {[%clk 0:02:33]}  Qxb4 {[%clk 0:02:39]} 14. Ra1 {[%clk 0:02:32]}  b5 {[%clk 0:02:27]} 15. Be2 {[%clk 0:02:26]}  e5 {[%clk 0:02:19]} 16. Bxf6 {[%clk 0:01:57]}  Nxf6 {[%clk 0:02:20]} 17. Nf3 {[%clk 0:01:53]}  Ne4 {[%clk 0:02:15]} 18. Nxe5 {[%clk 0:01:36]}  Rxe5 {[%clk 0:02:06]} 19. dxe5 {[%clk 0:01:34]}  Qxc3+ {[%clk 0:02:06]} 20. Qxc3 {[%clk 0:01:34]}  Nxc3 {[%clk 0:02:07]} 0-1


[Site "https://www.chess.com"]

[Event "Titled Tuesday Blitz June 28 Late 2022"]
[White "Bayo Milagro, Alvaro"]
[Black "Ibarra Jerez, Jose Carlos"]
[WhiteFideId "22275240"]
[BlackFideId "2226332"]
[WhiteElo "2270"]
[BlackElo "2628"]
[Result "0-1"]
[Round "03"]
[TimeControl "180+1"]
[Date "2022.06.28"]
[WhiteClock "0:00:03"]
[BlackClock "0:00:05"]

1. d4 {[%clk 0:03:00]}  d6 {[%clk 0:02:59]} 2. c4 {[%clk 0:02:59]}  e5 {[%clk 0:02:58]} 3. Nc3 {[%clk 0:03:00]}  exd4 {[%clk 0:02:58]} 4. Qxd4 {[%clk 0:03:01]}  Nc6 {[%clk 0:02:58]} 5. Qd2 {[%clk 0:03:01]}  Nf6 {[%clk 0:02:59]} 6. b3 {[%clk 0:03:01]}  Be6 {[%clk 0:02:59]} 7. e4 {[%clk 0:03:01]}  a5 {[%clk 0:02:59]} 8. f3 {[%clk 0:02:58]}  Be7 {[%clk 0:02:57]} 9. Bd3 {[%clk 0:02:58]}  O-O {[%clk 0:02:54]} 10. Nge2 {[%clk 0:02:59]}  Ne5 {[%clk 0:02:54]} 11. Bc2 {[%clk 0:02:53]}  a4 {[%clk 0:02:52]} 12. Rb1 {[%clk 0:02:49]}  axb3 {[%clk 0:02:52]} 13. axb3 {[%clk 0:02:50]}  c5 {[%clk 0:02:43]} 14. O-O {[%clk 0:02:48]}  Nc6 {[%clk 0:02:41]} 15. Bb2 {[%clk 0:02:46]}  Nd7 {[%clk 0:02:38]} 16. Nd5 {[%clk 0:02:45]}  Bxd5 {[%clk 0:02:35]} 17. cxd5 {[%clk 0:02:45]}  Nb4 {[%clk 0:02:34]} 18. Ra1 {[%clk 0:02:27]}  Rxa1 {[%clk 0:02:25]} 19. Rxa1 {[%clk 0:02:26]}  Bf6 {[%clk 0:02:25]} 20. Bc3 {[%clk 0:02:15]}  Qb6 {[%clk 0:02:13]} 21. Kh1 {[%clk 0:02:05]}  Re8 {[%clk 0:02:07]} 22. Ng3 {[%clk 0:01:57]}  g6 {[%clk 0:01:59]} 23. Bd1 {[%clk 0:01:36]}  Bxc3 {[%clk 0:01:47]} 24. Qxc3 {[%clk 0:01:35]}  Ne5 {[%clk 0:01:47]} 25. Be2 {[%clk 0:01:33]}  h5 {[%clk 0:01:44]} 26. Nf1 {[%clk 0:01:22]}  Nd7 {[%clk 0:01:41]} 27. Ne3 {[%clk 0:01:15]}  Qd8 {[%clk 0:01:38]} 28. Bb5 {[%clk 0:01:08]}  Re7 {[%clk 0:01:29]} 29. Nc4 {[%clk 0:01:04]}  Ne5 {[%clk 0:01:22]} 30. Ne3 {[%clk 0:00:42]}  Kh7 {[%clk 0:01:19]} 31. Rf1 {[%clk 0:00:31]}  Qa5 {[%clk 0:01:17]} 32. Bc4 {[%clk 0:00:28]}  b5 {[%clk 0:01:11]} 33. Be2 {[%clk 0:00:28]}  Nd7 {[%clk 0:01:06]} 34. Ra1 {[%clk 0:00:24]}  Qb6 {[%clk 0:01:00]} 35. Ra8 {[%clk 0:00:23]}  Nb8 {[%clk 0:01:01]} 36. g4 {[%clk 0:00:20]}  Qb7 {[%clk 0:00:53]} 37. Ra5 {[%clk 0:00:20]}  Nd7 {[%clk 0:00:35]} 38. gxh5 {[%clk 0:00:20]}  Ne5 {[%clk 0:00:32]} 39. hxg6+ {[%clk 0:00:20]}  fxg6 {[%clk 0:00:33]} 40. f4 {[%clk 0:00:21]}  Nd7 {[%clk 0:00:32]} 41. Bf3 {[%clk 0:00:20]}  Rf7 {[%clk 0:00:29]} 42. f5 {[%clk 0:00:17]}  Ne5 {[%clk 0:00:29]} 43. Ng4 {[%clk 0:00:13]}  Qe7 {[%clk 0:00:08]} 44. Ra8 {[%clk 0:00:07]}  Qg5 {[%clk 0:00:07]} 45. Nxe5 {[%clk 0:00:07]}  dxe5 {[%clk 0:00:08]} 46. Qxe5 {[%clk 0:00:06]}  Qc1+ {[%clk 0:00:08]} 47. Kg2 {[%clk 0:00:06]}  Qd2+ {[%clk 0:00:09]} 48. Kh3 {[%clk 0:00:05]}  Qh6+ {[%clk 0:00:09]} 49. Kg2 {[%clk 0:00:06]}  Qg5+ {[%clk 0:00:08]} 50. Kf1 {[%clk 0:00:04]}  Rg7 {[%clk 0:00:08]} 51. Qg3 {[%clk 0:00:03]}  Qc1+ {[%clk 0:00:05]} 52. Kg2 {[%clk 0:00:03]}  gxf5 {[%clk 0:00:05]} 0-1


[Site "https://www.chess.com"]

[Event "Titled Tuesday Blitz June 28 Late 2022"]
[White "Bobadilla Viera, Jorge Samuel"]
[Black "Donatti, Alvaro"]
[WhiteFideId "3906353"]
[BlackFideId "3000303"]
[WhiteElo "2202"]
[BlackElo "2138"]
[Result "1-0"]
[Round "03"]
[TimeControl "180+1"]
[Date "2022.06.29"]
[WhiteClock "0:01:07"]
[BlackClock "0:00:43"]

1. e4 {[%clk 0:02:49]}  c5 {[%clk 0:02:58]} 2. Nf3 {[%clk 0:02:49]}  e6 {[%clk 0:02:58]} 3. Nc3 {[%clk 0:02:49]}  Nc6 {[%clk 0:02:57]} 4. d4 {[%clk 0:02:49]}  cxd4 {[%clk 0:02:56]} 5. Nxd4 {[%clk 0:02:49]}  a6 {[%clk 0:02:55]} 6. Be3 {[%clk 0:02:46]}  Qc7 {[%clk 0:02:54]} 7. f4 {[%clk 0:02:42]}  b5 {[%clk 0:02:34]} 8. a3 {[%clk 0:02:36]}  Bb7 {[%clk 0:02:33]} 9. Qd2 {[%clk 0:02:29]}  Nf6 {[%clk 0:02:24]} 10. e5 {[%clk 0:02:25]}  Ng4 {[%clk 0:02:15]} 11. Bg1 {[%clk 0:02:24]}  Be7 {[%clk 0:02:09]} 12. h3 {[%clk 0:01:59]}  Nh6 {[%clk 0:02:08]} 13. O-O-O {[%clk 0:01:53]}  Rc8 {[%clk 0:02:06]} 14. Bd3 {[%clk 0:01:34]}  Nxd4 {[%clk 0:02:03]} 15. Bxd4 {[%clk 0:01:34]}  b4 {[%clk 0:01:56]} 16. axb4 {[%clk 0:01:33]}  Bxb4 {[%clk 0:01:55]} 17. Rhf1 {[%clk 0:01:25]}  Qa5 {[%clk 0:01:46]} 18. Kb1 {[%clk 0:01:24]}  Bd5 {[%clk 0:01:45]} 19. Qe3 {[%clk 0:01:22]}  Bxc3 {[%clk 0:00:51]} 20. Bxc3 {[%clk 0:01:21]}  Rxc3 {[%clk 0:00:50]} 21. bxc3 {[%clk 0:01:20]}  Qxc3 {[%clk 0:00:46]} 22. Kc1 {[%clk 0:01:07]}  O-O {[%clk 0:00:43]} 23. Bxh7+ {[%clk 0:01:07]} 1-0


[Site "https://www.chess.com"]

[Event "Titled Tuesday Blitz June 28 Late 2022"]
[White "Bolanos, Fernando"]
[Black "Marin Masis, Jose Esteban"]
[WhiteFideId "3304094"]
[BlackFideId "6508146"]
[WhiteElo "2048"]
[BlackElo "1710"]
[Result "1-0"]
[Round "03"]
[TimeControl "180+1"]
[Date "2022.06.29"]
[WhiteClock "0:00:08"]
[BlackClock "0:00:05"]

1. e4 {[%clk 0:03:00]}  c5 {[%clk 0:02:59]} 2. Nf3 {[%clk 0:02:58]}  Nc6 {[%clk 0:02:59]} 3. d4 {[%clk 0:02:56]}  cxd4 {[%clk 0:03:00]} 4. Nxd4 {[%clk 0:02:57]}  Nf6 {[%clk 0:02:59]} 5. Nc3 {[%clk 0:02:57]}  e5 {[%clk 0:02:59]} 6. Ndb5 {[%clk 0:02:56]}  d6 {[%clk 0:02:55]} 7. Nd5 {[%clk 0:02:56]}  Nxd5 {[%clk 0:02:43]} 8. exd5 {[%clk 0:02:57]}  Nb8 {[%clk 0:02:44]} 9. c4 {[%clk 0:02:44]}  a6 {[%clk 0:02:42]} 10. Nc3 {[%clk 0:02:44]}  Be7 {[%clk 0:02:40]} 11. Be2 {[%clk 0:02:40]}  O-O {[%clk 0:02:40]} 12. O-O {[%clk 0:02:41]}  f5 {[%clk 0:02:39]} 13. f4 {[%clk 0:02:41]}  Nd7 {[%clk 0:02:24]} 14. Be3 {[%clk 0:02:39]}  exf4 {[%clk 0:02:16]} 15. Bxf4 {[%clk 0:02:39]}  Qb6+ {[%clk 0:02:13]} 16. Kh1 {[%clk 0:02:38]}  Qxb2 {[%clk 0:02:09]} 17. Na4 {[%clk 0:02:38]}  Qf6 {[%clk 0:02:04]} 18. Rb1 {[%clk 0:02:38]}  Bd8 {[%clk 0:01:46]} 19. Qb3 {[%clk 0:02:33]}  b5 {[%clk 0:01:23]} 20. cxb5 {[%clk 0:02:28]}  axb5 {[%clk 0:01:22]} 21. Bxb5 {[%clk 0:02:29]}  Ne5 {[%clk 0:01:17]} 22. Bc6 {[%clk 0:02:18]}  Ra5 {[%clk 0:01:11]} 23. Qb4 {[%clk 0:02:11]}  g5 {[%clk 0:01:05]} 24. Bxe5 {[%clk 0:02:03]}  Qxe5 {[%clk 0:01:02]} 25. Nb6 {[%clk 0:02:04]}  Bxb6 {[%clk 0:00:52]} 26. Qxb6 {[%clk 0:02:04]}  Rxa2 {[%clk 0:00:51]} 27. Rfe1 {[%clk 0:01:57]}  Qf6 {[%clk 0:00:32]} 28. Qb3 {[%clk 0:01:42]}  Rd2 {[%clk 0:00:20]} 29. Qe3 {[%clk 0:01:40]}  Rd4 {[%clk 0:00:19]} 30. Rb8 {[%clk 0:01:39]}  f4 {[%clk 0:00:18]} 31. Qc3 {[%clk 0:00:38]}  Rd1 {[%clk 0:00:16]} 32. Qa5 {[%clk 0:00:34]}  Qd4 {[%clk 0:00:11]} 33. Rb1 {[%clk 0:00:26]}  Rd2 {[%clk 0:00:10]} 34. Be8 {[%clk 0:00:12]}  Bf5 {[%clk 0:00:09]} 35. Bh5 {[%clk 0:00:12]}  Qf2 {[%clk 0:00:09]} 36. Bf3 {[%clk 0:00:10]}  g4 {[%clk 0:00:09]} 37. Rf1 {[%clk 0:00:11]}  Qh4 {[%clk 0:00:06]} 38. Qxd2 {[%clk 0:00:09]}  gxf3 {[%clk 0:00:06]} 39. Rb7 {[%clk 0:00:07]}  fxg2+ {[%clk 0:00:05]} 40. Qxg2+ {[%clk 0:00:08]}  Kh8 {[%clk 0:00:05]} 41. Qg7# {[%clk 0:00:08]} 1-0


[Site "https://www.chess.com"]

[Event "Titled Tuesday Blitz June 28 Late 2022"]
[White "Bortnyk, Mykola"]
[Black "Pershin, Denis"]
[WhiteFideId "14120836"]
[BlackFideId "24165506"]
[WhiteElo "2582"]
[BlackElo "2275"]
[Result "0-1"]
[Round "03"]
[TimeControl "180+1"]
[Date "2022.06.28"]
[WhiteClock "0:00:21"]
[BlackClock "0:00:31"]

1. e4 {[%clk 0:03:00]}  c6 {[%clk 0:02:54]} 2. d4 {[%clk 0:02:59]}  d5 {[%clk 0:02:55]} 3. Bd3 {[%clk 0:02:56]}  dxe4 {[%clk 0:02:54]} 4. Bxe4 {[%clk 0:02:57]}  Nf6 {[%clk 0:02:54]} 5. Bf3 {[%clk 0:02:58]}  Bf5 {[%clk 0:02:55]} 6. Ne2 {[%clk 0:02:57]}  e6 {[%clk 0:02:55]} 7. O-O {[%clk 0:02:54]}  Nbd7 {[%clk 0:02:55]} 8. c4 {[%clk 0:02:55]}  Bd6 {[%clk 0:02:54]} 9. Nbc3 {[%clk 0:02:55]}  O-O {[%clk 0:02:54]} 10. Bf4 {[%clk 0:02:55]}  Bxf4 {[%clk 0:02:54]} 11. Nxf4 {[%clk 0:02:56]}  h6 {[%clk 0:02:53]} 12. Re1 {[%clk 0:02:53]}  Qc7 {[%clk 0:02:53]} 13. Nfe2 {[%clk 0:02:40]}  Rad8 {[%clk 0:02:52]} 14. Ng3 {[%clk 0:02:38]}  Bh7 {[%clk 0:02:52]} 15. Qe2 {[%clk 0:02:36]}  Rfe8 {[%clk 0:02:41]} 16. Rad1 {[%clk 0:02:32]}  e5 {[%clk 0:02:09]} 17. dxe5 {[%clk 0:02:31]}  Rxe5 {[%clk 0:02:10]} 18. Qd2 {[%clk 0:02:26]}  Nf8 {[%clk 0:01:55]} 19. Qxd8 {[%clk 0:02:07]}  Rxe1+ {[%clk 0:01:54]} 20. Nf1 {[%clk 0:02:08]}  Qxd8 {[%clk 0:01:53]} 21. Rxd8 {[%clk 0:02:09]}  Nd7 {[%clk 0:01:34]} 22. Be2 {[%clk 0:01:59]}  Rc1 {[%clk 0:01:24]} 23. Ra8 {[%clk 0:01:53]}  Rc2 {[%clk 0:01:18]} 24. Rxa7 {[%clk 0:01:41]}  Rxb2 {[%clk 0:01:18]} 25. Ne3 {[%clk 0:01:40]}  g5 {[%clk 0:01:02]} 26. g3 {[%clk 0:01:37]}  Nc5 {[%clk 0:00:57]} 27. Bg4 {[%clk 0:01:22]}  Nfe6 {[%clk 0:00:55]} 28. Bxe6 {[%clk 0:01:18]}  Nxe6 {[%clk 0:00:56]} 29. Ncd1 {[%clk 0:00:59]}  Rd2 {[%clk 0:00:53]} 30. Rxb7 {[%clk 0:00:57]}  Rxa2 {[%clk 0:00:49]} 31. Rb6 {[%clk 0:00:55]}  Be4 {[%clk 0:00:48]} 32. h4 {[%clk 0:00:35]}  Nd4 {[%clk 0:00:46]} 33. hxg5 {[%clk 0:00:32]}  hxg5 {[%clk 0:00:47]} 34. g4 {[%clk 0:00:32]}  Bf3 {[%clk 0:00:39]} 35. Rb8+ {[%clk 0:00:31]}  Kg7 {[%clk 0:00:39]} 36. Rd8 {[%clk 0:00:32]}  c5 {[%clk 0:00:36]} 37. Kh2 {[%clk 0:00:30]}  Bxd1 {[%clk 0:00:32]} 38. Nxd1 {[%clk 0:00:30]}  Rd2 {[%clk 0:00:32]} 39. Ne3 {[%clk 0:00:28]}  Nf3+ {[%clk 0:00:32]} 40. Kg3 {[%clk 0:00:26]}  Rxd8 {[%clk 0:00:32]} 41. Kxf3 {[%clk 0:00:27]}  Kf6 {[%clk 0:00:31]} 42. Ke4 {[%clk 0:00:27]}  Rd4+ {[%clk 0:00:31]} 43. Kf3 {[%clk 0:00:28]}  Ke5 {[%clk 0:00:31]} 44. Kg3 {[%clk 0:00:22]}  Rd3 {[%clk 0:00:28]} 45. Kf3 {[%clk 0:00:20]}  Kd4 {[%clk 0:00:29]} 46. Ke2 {[%clk 0:00:21]}  Rxe3+ {[%clk 0:00:28]} 47. fxe3+ {[%clk 0:00:22]}  Kxc4 {[%clk 0:00:29]} 48. Kd2 {[%clk 0:00:20]}  Kd5 {[%clk 0:00:29]} 49. Kd3 {[%clk 0:00:19]}  c4+ {[%clk 0:00:29]} 50. Kc3 {[%clk 0:00:19]}  Ke4 {[%clk 0:00:30]} 51. Kxc4 {[%clk 0:00:20]}  Kxe3 {[%clk 0:00:30]} 52. Kd5 {[%clk 0:00:21]}  Kf4 {[%clk 0:00:31]} 0-1


[Site "https://www.chess.com"]

[Event "Titled Tuesday Blitz June 28 Late 2022"]
[White "Colivet Gamboa, Julio Cesar"]
[Black "Silva, Miguel Antonio Neto"]
[WhiteFideId "3949583"]
[BlackFideId "1911929"]
[WhiteElo "1743"]
[BlackElo "2204"]
[Result "1-0"]
[Round "03"]
[TimeControl "180+1"]
[Date "2022.06.29"]
[WhiteClock "0:00:58"]
[BlackClock "0:00:37"]

1. c4 {[%clk 0:02:37]}  e5 {[%clk 0:02:53]} 2. Nc3 {[%clk 0:02:36]}  Nc6 {[%clk 0:02:53]} 3. g3 {[%clk 0:02:34]}  Bc5 {[%clk 0:02:52]} 4. Bg2 {[%clk 0:02:34]}  d6 {[%clk 0:02:51]} 5. e3 {[%clk 0:02:35]}  a6 {[%clk 0:02:52]} 6. Nge2 {[%clk 0:02:35]}  Ba7 {[%clk 0:02:52]} 7. O-O {[%clk 0:02:35]}  Nge7 {[%clk 0:02:51]} 8. b3 {[%clk 0:02:36]}  h5 {[%clk 0:02:48]} 9. h3 {[%clk 0:02:28]}  h4 {[%clk 0:02:46]} 10. g4 {[%clk 0:02:27]}  f5 {[%clk 0:02:46]} 11. gxf5 {[%clk 0:02:19]}  Bxf5 {[%clk 0:02:46]} 12. d4 {[%clk 0:02:18]}  Qd7 {[%clk 0:02:45]} 13. Kh2 {[%clk 0:02:13]}  g5 {[%clk 0:02:42]} 14. Nd5 {[%clk 0:02:08]}  O-O-O {[%clk 0:02:22]} 15. dxe5 {[%clk 0:02:03]}  Nxe5 {[%clk 0:02:17]} 16. e4 {[%clk 0:02:02]}  Be6 {[%clk 0:02:08]} 17. Bb2 {[%clk 0:01:55]}  N7g6 {[%clk 0:01:56]} 18. Nd4 {[%clk 0:01:50]}  g4 {[%clk 0:01:41]} 19. Nxe6 {[%clk 0:01:44]}  Qxe6 {[%clk 0:01:38]} 20. hxg4 {[%clk 0:01:36]}  Nxg4+ {[%clk 0:01:29]} 21. Qxg4 {[%clk 0:01:36]}  Qxg4 {[%clk 0:01:29]} 22. Bh3 {[%clk 0:01:35]}  Qxh3+ {[%clk 0:01:26]} 23. Kxh3 {[%clk 0:01:31]}  Rhf8 {[%clk 0:01:21]} 24. f4 {[%clk 0:01:26]}  c6 {[%clk 0:01:20]} 25. f5 {[%clk 0:01:18]}  cxd5 {[%clk 0:01:15]} 26. fxg6 {[%clk 0:01:18]}  dxe4 {[%clk 0:01:15]} 27. Rxf8 {[%clk 0:01:11]}  Rxf8 {[%clk 0:01:15]} 28. g7 {[%clk 0:01:10]}  Rg8 {[%clk 0:01:11]} 29. Rf1 {[%clk 0:01:10]}  Kd7 {[%clk 0:00:40]} 30. Rf8 {[%clk 0:01:08]}  e3 {[%clk 0:00:38]} 31. Rxg8 {[%clk 0:01:05]}  e2 {[%clk 0:00:38]} 32. Bc3 {[%clk 0:01:05]}  Bd4 {[%clk 0:00:38]} 33. Be1 {[%clk 0:00:59]}  b5 {[%clk 0:00:37]} 34. Rd8+ {[%clk 0:00:58]} 1-0


[Site "https://www.chess.com"]